[Event "Titled Tuesday Blitz July 05 Early 2022"]
[White "Jubin Jimmy"]
[Black "Krysa, Leandro"]
[WhiteFideId "46686614"]
[BlackFideId "116807"]
[WhiteElo "2219"]
[BlackElo "2490"]
[Result "0-1"]
[Round "07"]
[TimeControl "180+1"]
[Date "2022.07.05"]
[WhiteClock "0:00:19"]
[BlackClock "0:00:11"]

1. d4 {[%clk 0:03:00]}  Nf6 {[%clk 0:02:59]} 2. c4 {[%clk 0:03:01]}  g6 {[%clk 0:02:59]} 3. g3 {[%clk 0:02:59]}  Bg7 {[%clk 0:02:58]} 4. Bg2 {[%clk 0:02:58]}  d5 {[%clk 0:02:59]} 5. cxd5 {[%clk 0:02:59]}  Nxd5 {[%clk 0:02:59]} 6. Nc3 {[%clk 0:03:00]}  Nb6 {[%clk 0:02:56]} 7. Nf3 {[%clk 0:02:59]}  Nc6 {[%clk 0:02:56]} 8. e3 {[%clk 0:02:58]}  O-O {[%clk 0:02:54]} 9. O-O {[%clk 0:02:58]}  e5 {[%clk 0:02:52]} 10. d5 {[%clk 0:02:58]}  Na5 {[%clk 0:02:52]} 11. e4 {[%clk 0:02:57]}  c6 {[%clk 0:02:52]} 12. Bg5 {[%clk 0:02:35]}  f6 {[%clk 0:02:52]} 13. Bc1 {[%clk 0:02:30]}  cxd5 {[%clk 0:02:49]} 14. Nxd5 {[%clk 0:02:24]}  Nxd5 {[%clk 0:02:48]} 15. exd5 {[%clk 0:02:24]}  Nc4 {[%clk 0:02:34]} 16. b3 {[%clk 0:02:22]}  Nd6 {[%clk 0:02:33]} 17. Ba3 {[%clk 0:02:21]}  Rf7 {[%clk 0:02:28]} 18. Rc1 {[%clk 0:02:18]}  Bf8 {[%clk 0:02:27]} 19. Nd2 {[%clk 0:02:13]}  Kh8 {[%clk 0:02:15]} 20. Kh1 {[%clk 0:02:10]}  Bd7 {[%clk 0:02:08]} 21. f4 {[%clk 0:02:07]}  exf4 {[%clk 0:02:04]} 22. Rxf4 {[%clk 0:02:07]}  Rc8 {[%clk 0:02:01]} 23. Rxc8 {[%clk 0:01:52]}  Bxc8 {[%clk 0:02:02]} 24. Bb2 {[%clk 0:01:45]}  Bg7 {[%clk 0:01:59]} 25. Nc4 {[%clk 0:01:44]}  b5 {[%clk 0:01:42]} 26. Nd2 {[%clk 0:01:27]}  f5 {[%clk 0:01:36]} 27. Bxg7+ {[%clk 0:01:21]}  Kxg7 {[%clk 0:01:36]} 28. Nf3 {[%clk 0:01:16]}  Qf6 {[%clk 0:01:36]} 29. Nd4 {[%clk 0:01:15]}  Re7 {[%clk 0:01:36]} 30. Rf1 {[%clk 0:01:12]}  Bd7 {[%clk 0:01:31]} 31. h3 {[%clk 0:01:04]}  Re3 {[%clk 0:01:29]} 32. Rf3 {[%clk 0:01:00]}  Qe5 {[%clk 0:01:24]} 33. Rxe3 {[%clk 0:00:56]}  Qxe3 {[%clk 0:01:24]} 34. Ne2 {[%clk 0:00:54]}  b4 {[%clk 0:01:08]} 35. Qc2 {[%clk 0:00:48]}  Ne4 {[%clk 0:00:49]} 36. Bxe4 {[%clk 0:00:29]}  Qxe4+ {[%clk 0:00:48]} 37. Qxe4 {[%clk 0:00:27]}  fxe4 {[%clk 0:00:49]} 38. Kg1 {[%clk 0:00:27]}  Kf6 {[%clk 0:00:40]} 39. Kf2 {[%clk 0:00:27]}  Ke5 {[%clk 0:00:39]} 40. Ke3 {[%clk 0:00:23]}  Bxh3 {[%clk 0:00:33]} 41. d6 {[%clk 0:00:19]}  Kxd6 {[%clk 0:00:26]} 42. Kxe4 {[%clk 0:00:19]}  Bf5+ {[%clk 0:00:22]} 43. Kf4 {[%clk 0:00:19]}  Bb1 {[%clk 0:00:20]} 44. Kg5 {[%clk 0:00:19]}  Bxa2 {[%clk 0:00:19]} 45. Nc1 {[%clk 0:00:19]}  Bb1 {[%clk 0:00:16]} 46. Kh6 {[%clk 0:00:20]}  Ke5 {[%clk 0:00:14]} 47. Kxh7 {[%clk 0:00:20]}  Kd4 {[%clk 0:00:14]} 48. Ne2+ {[%clk 0:00:20]}  Kd3 {[%clk 0:00:10]} 49. Nf4+ {[%clk 0:00:20]}  Kc3 {[%clk 0:00:11]} 50. Nxg6 {[%clk 0:00:19]}  Kxb3 {[%clk 0:00:10]} 51. Kh6 {[%clk 0:00:19]}  Bxg6 {[%clk 0:00:10]} 52. Kxg6 {[%clk 0:00:19]}  Ka2 {[%clk 0:00:11]} 0-1


[Site "https://www.chess.com"]

[Event "Titled Tuesday Blitz July 05 Early 2022"]
[White "Khripachenko, Alexander"]
[Black "Wagner, Dennis"]
[WhiteFideId "54184975"]
[BlackFideId "24650684"]
[WhiteElo "2147"]
[BlackElo "2355"]
[Result "1-0"]
[Round "07"]
[TimeControl "180+1"]
[Date "2022.07.05"]
[WhiteClock "0:00:20"]
[BlackClock "0:00:10"]

1. e4 {[%clk 0:02:58]}  c5 {[%clk 0:02:57]} 2. Nf3 {[%clk 0:02:58]}  d6 {[%clk 0:02:57]} 3. d4 {[%clk 0:02:59]}  cxd4 {[%clk 0:02:58]} 4. Nxd4 {[%clk 0:03:00]}  Nf6 {[%clk 0:02:58]} 5. f3 {[%clk 0:03:00]}  a6 {[%clk 0:02:59]} 6. c4 {[%clk 0:03:00]}  e6 {[%clk 0:02:59]} 7. Nc3 {[%clk 0:03:01]}  Be7 {[%clk 0:02:59]} 8. Be3 {[%clk 0:03:01]}  O-O {[%clk 0:03:00]} 9. Qd2 {[%clk 0:03:02]}  b6 {[%clk 0:02:57]} 10. Be2 {[%clk 0:03:01]}  Bb7 {[%clk 0:02:58]} 11. O-O {[%clk 0:03:02]}  Nbd7 {[%clk 0:02:58]} 12. Rfd1 {[%clk 0:03:02]}  Rc8 {[%clk 0:02:56]} 13. a4 {[%clk 0:03:02]}  Re8 {[%clk 0:02:51]} 14. a5 {[%clk 0:03:00]}  bxa5 {[%clk 0:02:49]} 15. Nb3 {[%clk 0:03:00]}  Rb8 {[%clk 0:02:47]} 16. Nxa5 {[%clk 0:03:00]}  Ba8 {[%clk 0:02:48]} 17. Ra2 {[%clk 0:02:03]}  Qc7 {[%clk 0:02:46]} 18. Rc1 {[%clk 0:01:54]}  Nc5 {[%clk 0:02:41]} 19. b4 {[%clk 0:01:41]}  Ncd7 {[%clk 0:02:09]} 20. b5 {[%clk 0:01:40]}  Nc5 {[%clk 0:02:01]} 21. bxa6 {[%clk 0:01:40]}  Nxa6 {[%clk 0:02:00]} 22. Nb5 {[%clk 0:01:40]}  Qd7 {[%clk 0:01:55]} 23. Nb3 {[%clk 0:01:36]}  Nc5 {[%clk 0:01:30]} 24. Nxc5 {[%clk 0:01:32]}  dxc5 {[%clk 0:01:30]} 25. Qxd7 {[%clk 0:01:32]}  Nxd7 {[%clk 0:01:31]} 26. Ra7 {[%clk 0:01:25]}  Bc6 {[%clk 0:01:23]} 27. Rd1 {[%clk 0:01:18]}  Ne5 {[%clk 0:00:48]} 28. Nc7 {[%clk 0:01:01]}  Red8 {[%clk 0:00:42]} 29. Rxd8+ {[%clk 0:00:43]}  Bxd8 {[%clk 0:00:34]} 30. Bxc5 {[%clk 0:00:39]}  Rb2 {[%clk 0:00:28]} 31. Kf1 {[%clk 0:00:31]}  g5 {[%clk 0:00:19]} 32. Bd4 {[%clk 0:00:29]}  Rb1+ {[%clk 0:00:19]} 33. Kf2 {[%clk 0:00:29]}  Bf6 {[%clk 0:00:20]} 34. Be3 {[%clk 0:00:18]}  Rb2 {[%clk 0:00:16]} 35. Kf1 {[%clk 0:00:19]}  Rb1+ {[%clk 0:00:15]} 36. Kf2 {[%clk 0:00:19]}  Rb2 {[%clk 0:00:16]} 37. Kf1 {[%clk 0:00:20]}  Kg7 {[%clk 0:00:17]} 38. Nxe6+ {[%clk 0:00:19]}  Kg6 {[%clk 0:00:16]} 39. Nd4 {[%clk 0:00:20]}  Bd7 {[%clk 0:00:14]} 40. Ra6 {[%clk 0:00:20]}  Rb1+ {[%clk 0:00:14]} 41. Kf2 {[%clk 0:00:20]}  Rb2 {[%clk 0:00:14]} 42. Ke1 {[%clk 0:00:21]}  Bc8 {[%clk 0:00:12]} 43. Ra1 {[%clk 0:00:18]}  Be7 {[%clk 0:00:09]} 44. Rc1 {[%clk 0:00:11]}  Bb4+ {[%clk 0:00:09]} 45. Kf1 {[%clk 0:00:12]}  Bc5 {[%clk 0:00:09]} 46. Nf5 {[%clk 0:00:12]}  Bxe3 {[%clk 0:00:09]} 47. Nxe3 {[%clk 0:00:12]}  Nc6 {[%clk 0:00:08]} 48. Rc2 {[%clk 0:00:12]}  Rb1+ {[%clk 0:00:08]} 49. Kf2 {[%clk 0:00:12]}  h5 {[%clk 0:00:08]} 50. g3 {[%clk 0:00:12]}  f6 {[%clk 0:00:07]} 51. f4 {[%clk 0:00:13]}  gxf4 {[%clk 0:00:06]} 52. gxf4 {[%clk 0:00:14]}  Bd7 {[%clk 0:00:06]} 53. Rd2 {[%clk 0:00:14]}  Be8 {[%clk 0:00:05]} 54. e5 {[%clk 0:00:15]}  fxe5 {[%clk 0:00:05]} 55. Bd3+ {[%clk 0:00:15]}  Kf6 {[%clk 0:00:04]} 56. fxe5+ {[%clk 0:00:16]}  Nxe5 {[%clk 0:00:04]} 57. Bxb1 {[%clk 0:00:17]}  h4 {[%clk 0:00:04]} 58. Rd6+ {[%clk 0:00:17]}  Ke7 {[%clk 0:00:04]} 59. Rh6 {[%clk 0:00:17]}  Bd7 {[%clk 0:00:04]} 60. Rxh4 {[%clk 0:00:17]}  Kd6 {[%clk 0:00:04]} 61. Rd4+ {[%clk 0:00:18]}  Kc5 {[%clk 0:00:04]} 62. Rd5+ {[%clk 0:00:18]}  Kb4 {[%clk 0:00:04]} 63. Rxe5 {[%clk 0:00:19]}  Bc6 {[%clk 0:00:05]} 64. h4 {[%clk 0:00:20]}  Kc3 {[%clk 0:00:06]} 65. h5 {[%clk 0:00:20]}  Kd2 {[%clk 0:00:07]} 66. h6 {[%clk 0:00:21]}  Kc1 {[%clk 0:00:07]} 67. h7 {[%clk 0:00:21]}  Ba4 {[%clk 0:00:08]} 68. h8=Q {[%clk 0:00:21]}  Bd1 {[%clk 0:00:09]} 69. Nxd1 {[%clk 0:00:20]}  Kd2 {[%clk 0:00:10]} 70. Re2+ {[%clk 0:00:20]}  Kc1 {[%clk 0:00:10]} 71. Qb2+ {[%clk 0:00:20]} 1-0


[Site "https://www.chess.com"]

[Event "Titled Tuesday Blitz July 05 Early 2022"]
[White "Livaic, Leon"]
[Black "Yaksin, Oleg"]
[WhiteFideId "14531534"]
[BlackFideId "24105880"]
[WhiteElo "2540"]
[BlackElo "2256"]
[Result "1/2-1/2"]
[Round "07"]
[TimeControl "180+1"]
[Date "2022.07.05"]
[WhiteClock "0:01:42"]
[BlackClock "0:00:39"]

1. b3 {[%clk 0:03:00]}  Nf6 {[%clk 0:02:56]} 2. Bb2 {[%clk 0:03:01]}  e6 {[%clk 0:02:56]} 3. e3 {[%clk 0:02:57]}  Be7 {[%clk 0:02:56]} 4. Nf3 {[%clk 0:02:57]}  O-O {[%clk 0:02:57]} 5. c4 {[%clk 0:02:56]}  b6 {[%clk 0:02:54]} 6. g3 {[%clk 0:02:56]}  Bb7 {[%clk 0:02:54]} 7. Bg2 {[%clk 0:02:57]}  c5 {[%clk 0:02:54]} 8. O-O {[%clk 0:02:56]}  d6 {[%clk 0:02:53]} 9. Nc3 {[%clk 0:02:55]}  Nbd7 {[%clk 0:02:53]} 10. d4 {[%clk 0:02:54]}  cxd4 {[%clk 0:02:51]} 11. Nxd4 {[%clk 0:02:51]}  Bxg2 {[%clk 0:02:50]} 12. Kxg2 {[%clk 0:02:52]}  Qc7 {[%clk 0:02:41]} 13. Qf3 {[%clk 0:02:51]}  Ne5 {[%clk 0:02:37]} 14. Qe2 {[%clk 0:02:50]}  a6 {[%clk 0:02:37]} 15. Rac1 {[%clk 0:02:47]}  Rfd8 {[%clk 0:02:36]} 16. f4 {[%clk 0:02:44]}  Nc6 {[%clk 0:02:34]} 17. Nxc6 {[%clk 0:02:40]}  Qxc6+ {[%clk 0:02:35]} 18. Qf3 {[%clk 0:02:40]}  Qxf3+ {[%clk 0:02:33]} 19. Kxf3 {[%clk 0:02:41]}  Rac8 {[%clk 0:02:31]} 20. e4 {[%clk 0:02:39]}  Kf8 {[%clk 0:02:25]} 21. Rfd1 {[%clk 0:02:28]}  Nd7 {[%clk 0:02:20]} 22. Ba3 {[%clk 0:02:24]}  Nc5 {[%clk 0:02:18]} 23. Bxc5 {[%clk 0:02:24]}  bxc5 {[%clk 0:02:02]} 24. e5 {[%clk 0:02:22]}  dxe5 {[%clk 0:01:57]} 25. fxe5 {[%clk 0:02:23]}  Rxd1 {[%clk 0:01:57]} 26. Rxd1 {[%clk 0:02:16]}  Rd8 {[%clk 0:01:57]} 27. Rxd8+ {[%clk 0:02:10]}  Bxd8 {[%clk 0:01:58]} 28. Ke4 {[%clk 0:02:04]}  f5+ {[%clk 0:01:55]} 29. exf6 {[%clk 0:02:03]}  gxf6 {[%clk 0:01:55]} 30. g4 {[%clk 0:02:01]}  Bc7 {[%clk 0:01:48]} 31. h3 {[%clk 0:02:01]}  Kf7 {[%clk 0:01:47]} 32. a3 {[%clk 0:01:54]}  Bd6 {[%clk 0:01:44]} 33. Na2 {[%clk 0:01:41]}  a5 {[%clk 0:01:32]} 34. Nc1 {[%clk 0:01:41]}  Kg6 {[%clk 0:01:31]} 35. Nd3 {[%clk 0:01:42]}  f5+ {[%clk 0:01:30]} 36. Kf3 {[%clk 0:01:42]}  Kg5 {[%clk 0:01:28]} 37. b4 {[%clk 0:01:37]}  axb4 {[%clk 0:01:28]} 38. axb4 {[%clk 0:01:38]}  cxb4 {[%clk 0:01:24]} 39. c5 {[%clk 0:01:38]}  fxg4+ {[%clk 0:01:09]} 40. hxg4 {[%clk 0:01:38]}  Bxc5 {[%clk 0:00:39]} 41. Nxc5 {[%clk 0:01:39]}  h5 {[%clk 0:00:39]} 42. gxh5 {[%clk 0:01:39]}  Kxh5 {[%clk 0:00:39]} 43. Nxe6 {[%clk 0:01:40]}  b3 {[%clk 0:00:39]} 44. Nf4+ {[%clk 0:01:41]}  Kg5 {[%clk 0:00:38]} 45. Nd3 {[%clk 0:01:41]}  b2 {[%clk 0:00:39]} 46. Nxb2 {[%clk 0:01:42]} 1/2-1/2


[Site "https://www.chess.com"]

[Event "Titled Tuesday Blitz July 05 Early 2022"]
[White "Navarrete Mendez, Gonzalo Alberto"]
[Black "Grandelius, Nils"]
[WhiteFideId "5106850"]
[BlackFideId "1710400"]
[WhiteElo "2261"]
[BlackElo "2617"]
[Result "1/2-1/2"]
[Round "07"]
[TimeControl "180+1"]
[Date "2022.07.05"]
[WhiteClock "0:00:05"]
[BlackClock "0:00:06"]

1. e4 {[%clk 0:03:00]}  c5 {[%clk 0:02:59]} 2. Nf3 {[%clk 0:03:00]}  d6 {[%clk 0:02:59]} 3. Nc3 {[%clk 0:03:00]}  Nc6 {[%clk 0:02:56]} 4. d4 {[%clk 0:02:59]}  cxd4 {[%clk 0:02:57]} 5. Nxd4 {[%clk 0:03:00]}  Nf6 {[%clk 0:02:58]} 6. Bc4 {[%clk 0:03:00]}  Qb6 {[%clk 0:02:58]} 7. Nxc6 {[%clk 0:02:58]}  bxc6 {[%clk 0:02:59]} 8. O-O {[%clk 0:02:57]}  g6 {[%clk 0:02:58]} 9. Be3 {[%clk 0:02:57]}  Qc7 {[%clk 0:02:46]} 10. h3 {[%clk 0:02:53]}  Bg7 {[%clk 0:02:46]} 11. Qd2 {[%clk 0:02:52]}  O-O {[%clk 0:02:41]} 12. Bh6 {[%clk 0:02:51]}  Rb8 {[%clk 0:02:40]} 13. Bb3 {[%clk 0:02:48]}  c5 {[%clk 0:02:27]} 14. Bxg7 {[%clk 0:02:38]}  Kxg7 {[%clk 0:02:28]} 15. Nd5 {[%clk 0:02:14]}  Nxd5 {[%clk 0:02:28]} 16. Bxd5 {[%clk 0:02:15]}  Ba6 {[%clk 0:02:12]} 17. Rfe1 {[%clk 0:01:52]}  Kg8 {[%clk 0:02:07]} 18. b3 {[%clk 0:01:07]}  c4 {[%clk 0:01:56]} 19. Qd4 {[%clk 0:00:51]}  Rfc8 {[%clk 0:01:45]} 20. e5 {[%clk 0:00:41]}  e6 {[%clk 0:01:43]} 21. Bxc4 {[%clk 0:00:38]}  dxe5 {[%clk 0:01:40]} 22. Rxe5 {[%clk 0:00:34]}  Bxc4 {[%clk 0:01:37]} 23. bxc4 {[%clk 0:00:35]}  Rb4 {[%clk 0:01:35]} 24. Rae1 {[%clk 0:00:16]}  Rxc4 {[%clk 0:01:33]} 25. Qe3 {[%clk 0:00:16]}  Rxc2 {[%clk 0:01:25]} 26. a4 {[%clk 0:00:16]}  Ra2 {[%clk 0:01:15]} 27. Qh6 {[%clk 0:00:14]}  Qb6 {[%clk 0:01:06]} 28. Qh4 {[%clk 0:00:09]}  Rcc2 {[%clk 0:01:03]} 29. Rf1 {[%clk 0:00:06]}  Qc6 {[%clk 0:00:55]} 30. Re4 {[%clk 0:00:06]}  Kg7 {[%clk 0:00:33]} 31. Rb4 {[%clk 0:00:05]}  Qd6 {[%clk 0:00:22]} 32. Rf4 {[%clk 0:00:05]}  e5 {[%clk 0:00:22]} 33. Rf3 {[%clk 0:00:04]}  Rd2 {[%clk 0:00:20]} 34. Qg5 {[%clk 0:00:04]}  Rxa4 {[%clk 0:00:19]} 35. h4 {[%clk 0:00:04]}  h6 {[%clk 0:00:19]} 36. Qg3 {[%clk 0:00:03]}  Rdd4 {[%clk 0:00:16]} 37. h5 {[%clk 0:00:03]}  Rg4 {[%clk 0:00:17]} 38. Qh2 {[%clk 0:00:01]}  Rh4 {[%clk 0:00:16]} 39. Rh3 {[%clk 0:00:02]}  Rxh3 {[%clk 0:00:11]} 40. Qxh3 {[%clk 0:00:03]}  g5 {[%clk 0:00:11]} 41. Qe3 {[%clk 0:00:03]}  Rd4 {[%clk 0:00:10]} 42. Re1 {[%clk 0:00:03]}  a5 {[%clk 0:00:10]} 43. g3 {[%clk 0:00:03]}  Rd5 {[%clk 0:00:09]} 44. Qe4 {[%clk 0:00:04]}  Rd4 {[%clk 0:00:08]} 45. Qxe5+ {[%clk 0:00:04]}  Qxe5 {[%clk 0:00:09]} 46. Rxe5 {[%clk 0:00:04]}  a4 {[%clk 0:00:10]} 47. Ra5 {[%clk 0:00:05]}  g4 {[%clk 0:00:11]} 48. Kg2 {[%clk 0:00:05]}  Rb4 {[%clk 0:00:11]} 49. Kf1 {[%clk 0:00:05]}  Kf8 {[%clk 0:00:09]} 50. Ke2 {[%clk 0:00:05]}  Ke7 {[%clk 0:00:09]} 51. Ra6 {[%clk 0:00:06]}  f6 {[%clk 0:00:09]} 52. Ke3 {[%clk 0:00:05]}  Kf7 {[%clk 0:00:09]} 53. Ke2 {[%clk 0:00:04]}  Ke7 {[%clk 0:00:08]} 54. Ke3 {[%clk 0:00:05]}  Rb3+ {[%clk 0:00:09]} 55. Ke4 {[%clk 0:00:04]}  a3 {[%clk 0:00:09]} 56. Ra7+ {[%clk 0:00:04]}  Ke6 {[%clk 0:00:09]} 57. Ra6+ {[%clk 0:00:04]}  Ke7 {[%clk 0:00:09]} 58. Ra7+ {[%clk 0:00:04]}  Ke6 {[%clk 0:00:10]} 59. Ra6+ {[%clk 0:00:05]}  Kd7 {[%clk 0:00:10]} 60. Ra7+ {[%clk 0:00:05]}  Kd6 {[%clk 0:00:11]} 61. Kd4 {[%clk 0:00:04]}  Rf3 {[%clk 0:00:10]} 62. Ra6+ {[%clk 0:00:04]}  Ke7 {[%clk 0:00:10]} 63. Ke4 {[%clk 0:00:04]}  Kf7 {[%clk 0:00:09]} 64. Ra7+ {[%clk 0:00:04]}  Ke6 {[%clk 0:00:09]} 65. Ra6+ {[%clk 0:00:05]}  Kd7 {[%clk 0:00:10]} 66. Ra7+ {[%clk 0:00:05]}  Kc6 {[%clk 0:00:10]} 67. Kd4 {[%clk 0:00:04]}  Kb6 {[%clk 0:00:10]} 68. Ra4 {[%clk 0:00:03]}  Kb5 {[%clk 0:00:10]} 69. Ra8 {[%clk 0:00:03]}  Kb4 {[%clk 0:00:11]} 70. Rb8+ {[%clk 0:00:03]}  Ka4 {[%clk 0:00:11]} 71. Kc4 {[%clk 0:00:03]}  Ka5 {[%clk 0:00:10]} 72. Ra8+ {[%clk 0:00:03]}  Kb6 {[%clk 0:00:10]} 73. Kd4 {[%clk 0:00:04]}  Kc6 {[%clk 0:00:08]} 74. Ra6+ {[%clk 0:00:03]}  Kb5 {[%clk 0:00:08]} 75. Ra8 {[%clk 0:00:03]}  f5 {[%clk 0:00:08]} 76. Rb8+ {[%clk 0:00:03]}  Kc6 {[%clk 0:00:09]} 77. Ra8 {[%clk 0:00:02]}  Kd6 {[%clk 0:00:09]} 78. Ra6+ {[%clk 0:00:02]}  Ke7 {[%clk 0:00:09]} 79. Rxh6 {[%clk 0:00:03]}  Rxf2 {[%clk 0:00:09]} 80. Ra6 {[%clk 0:00:03]}  Rf3 {[%clk 0:00:09]} 81. Ke5 {[%clk 0:00:04]}  Kf7 {[%clk 0:00:08]} 82. Ra7+ {[%clk 0:00:03]}  Kg8 {[%clk 0:00:08]} 83. Kf6 {[%clk 0:00:03]}  Rb3 {[%clk 0:00:07]} 84. h6 {[%clk 0:00:03]}  Rb6+ {[%clk 0:00:03]} 85. Kxf5 {[%clk 0:00:03]}  a2 {[%clk 0:00:03]} 86. Rxa2 {[%clk 0:00:02]}  Kh7 {[%clk 0:00:04]} 87. Kxg4 {[%clk 0:00:03]}  Kxh6 {[%clk 0:00:04]} 88. Ra4 {[%clk 0:00:02]}  Kg6 {[%clk 0:00:04]} 89. Rf4 {[%clk 0:00:03]}  Rb5 {[%clk 0:00:05]} 90. Kf3 {[%clk 0:00:03]}  Ra5 {[%clk 0:00:05]} 91. Rg4+ {[%clk 0:00:03]}  Kf7 {[%clk 0:00:05]} 92. Rf4+ {[%clk 0:00:04]}  Kg6 {[%clk 0:00:05]} 93. Rg4+ {[%clk 0:00:04]}  Kf6 {[%clk 0:00:06]} 94. Rf4+ {[%clk 0:00:05]}  Kg6 {[%clk 0:00:06]} 1/2-1/2


[Site "https://www.chess.com"]

[Event "Titled Tuesday Blitz July 05 Early 2022"]
[White "Oparin, Grigoriy"]
[Black "Xu, Yi"]
[WhiteFideId "24125890"]
[BlackFideId "8605564"]
[WhiteElo "2639"]
[BlackElo "2471"]
[Result "1-0"]
[Round "07"]
[TimeControl "180+1"]
[Date "2022.07.05"]
[WhiteClock "0:00:08"]
[BlackClock "0:00:04"]

1. Nf3 {[%clk 0:03:00]}  d5 {[%clk 0:02:59]} 2. c4 {[%clk 0:03:00]}  e6 {[%clk 0:02:59]} 3. d4 {[%clk 0:03:00]}  Nf6 {[%clk 0:02:59]} 4. g3 {[%clk 0:03:00]}  Bb4+ {[%clk 0:02:58]} 5. Bd2 {[%clk 0:02:59]}  Be7 {[%clk 0:02:58]} 6. Bg2 {[%clk 0:03:00]}  O-O {[%clk 0:02:58]} 7. O-O {[%clk 0:03:01]}  c6 {[%clk 0:02:58]} 8. Bc3 {[%clk 0:03:01]}  b6 {[%clk 0:02:47]} 9. Nbd2 {[%clk 0:03:01]}  Nbd7 {[%clk 0:02:46]} 10. b4 {[%clk 0:03:01]}  Bb7 {[%clk 0:02:42]} 11. Qb3 {[%clk 0:03:01]}  Rc8 {[%clk 0:02:30]} 12. a4 {[%clk 0:02:55]}  dxc4 {[%clk 0:02:24]} 13. Nxc4 {[%clk 0:02:56]}  c5 {[%clk 0:02:17]} 14. dxc5 {[%clk 0:02:56]}  bxc5 {[%clk 0:02:11]} 15. b5 {[%clk 0:02:56]}  Bd5 {[%clk 0:02:08]} 16. Nfd2 {[%clk 0:02:51]}  Nb6 {[%clk 0:02:07]} 17. Rfd1 {[%clk 0:02:41]}  Bxg2 {[%clk 0:01:57]} 18. Kxg2 {[%clk 0:02:42]}  Qd5+ {[%clk 0:01:56]} 19. f3 {[%clk 0:02:38]}  Qh5 {[%clk 0:01:41]} 20. a5 {[%clk 0:02:15]}  Nbd5 {[%clk 0:01:41]} 21. e4 {[%clk 0:02:09]}  Nxc3 {[%clk 0:01:14]} 22. Qxc3 {[%clk 0:02:09]}  Rfd8 {[%clk 0:01:14]} 23. b6 {[%clk 0:02:04]}  axb6 {[%clk 0:01:13]} 24. axb6 {[%clk 0:02:05]}  g5 {[%clk 0:01:10]} 25. h3 {[%clk 0:02:00]}  Qg6 {[%clk 0:00:52]} 26. Ne5 {[%clk 0:01:53]}  Qg7 {[%clk 0:00:52]} 27. b7 {[%clk 0:01:42]}  Rc7 {[%clk 0:00:48]} 28. Qb3 {[%clk 0:01:00]}  Rb8 {[%clk 0:00:30]} 29. Ra8 {[%clk 0:01:00]}  Qf8 {[%clk 0:00:28]} 30. Rxb8 {[%clk 0:00:58]}  Qxb8 {[%clk 0:00:27]} 31. Rb1 {[%clk 0:00:58]}  Bd6 {[%clk 0:00:21]} 32. Nec4 {[%clk 0:00:51]}  Bxg3 {[%clk 0:00:19]} 33. e5 {[%clk 0:00:48]}  Nh5 {[%clk 0:00:17]} 34. Qb6 {[%clk 0:00:30]}  Rd7 {[%clk 0:00:13]} 35. Qc6 {[%clk 0:00:30]}  Rd8 {[%clk 0:00:07]} 36. Ne4 {[%clk 0:00:19]}  Bxe5 {[%clk 0:00:04]} 37. Qb6 {[%clk 0:00:14]}  Bc7 {[%clk 0:00:04]} 38. Qxc5 {[%clk 0:00:14]}  Nf4+ {[%clk 0:00:04]} 39. Kh1 {[%clk 0:00:14]}  Nd5 {[%clk 0:00:03]} 40. Na5 {[%clk 0:00:13]}  Bxa5 {[%clk 0:00:03]} 41. Qxa5 {[%clk 0:00:14]}  Re8 {[%clk 0:00:02]} 42. Qd2 {[%clk 0:00:13]}  h6 {[%clk 0:00:02]} 43. Nc5 {[%clk 0:00:12]}  Qc7 {[%clk 0:00:01]} 44. Na6 {[%clk 0:00:12]}  Qg3 {[%clk 0:00:02]} 45. Qg2 {[%clk 0:00:12]}  Qe5 {[%clk 0:00:02]} 46. b8=Q {[%clk 0:00:12]}  Rxb8 {[%clk 0:00:02]} 47. Nxb8 {[%clk 0:00:13]}  Nf4 {[%clk 0:00:02]} 48. Nc6 {[%clk 0:00:12]}  Qf5 {[%clk 0:00:02]} 49. Qf1 {[%clk 0:00:11]}  Qc2 {[%clk 0:00:01]} 50. Nd4 {[%clk 0:00:10]}  Qd2 {[%clk 0:00:01]} 51. Rd1 {[%clk 0:00:11]}  Qe3 {[%clk 0:00:02]} 52. Qg1 {[%clk 0:00:11]}  Qe5 {[%clk 0:00:02]} 53. Qf1 {[%clk 0:00:11]}  Nh5 {[%clk 0:00:02]} 54. Qf2 {[%clk 0:00:10]}  Ng3+ {[%clk 0:00:02]} 55. Kg2 {[%clk 0:00:10]}  Nh5 {[%clk 0:00:03]} 56. Ne2 {[%clk 0:00:11]}  Qf5 {[%clk 0:00:02]} 57. Rd4 {[%clk 0:00:09]}  Kg7 {[%clk 0:00:03]} 58. Re4 {[%clk 0:00:10]}  Qd5 {[%clk 0:00:03]} 59. Qd4+ {[%clk 0:00:10]}  Qxd4 {[%clk 0:00:03]} 60. Rxd4 {[%clk 0:00:11]}  Nf6 {[%clk 0:00:04]} 61. Ra4 {[%clk 0:00:11]}  Kg6 {[%clk 0:00:05]} 62. Ng3 {[%clk 0:00:11]}  Nd5 {[%clk 0:00:05]} 63. Ra8 {[%clk 0:00:11]}  Kf6 {[%clk 0:00:05]} 64. Ne2 {[%clk 0:00:11]}  Kg7 {[%clk 0:00:05]} 65. Kg3 {[%clk 0:00:11]}  Kf6 {[%clk 0:00:06]} 66. h4 {[%clk 0:00:11]}  Kg6 {[%clk 0:00:06]} 67. hxg5 {[%clk 0:00:11]}  hxg5 {[%clk 0:00:06]} 68. f4 {[%clk 0:00:11]}  Kf5 {[%clk 0:00:06]} 69. fxg5 {[%clk 0:00:11]}  Kxg5 {[%clk 0:00:07]} 70. Kf3 {[%clk 0:00:12]}  Kf5 {[%clk 0:00:07]} 71. Ng3+ {[%clk 0:00:12]}  Ke5 {[%clk 0:00:07]} 72. Ra7 {[%clk 0:00:13]}  f5 {[%clk 0:00:07]} 73. Nh5 {[%clk 0:00:13]}  Kd4 {[%clk 0:00:06]} 74. Rd7 {[%clk 0:00:12]}  Ke5 {[%clk 0:00:05]} 75. Rd8 {[%clk 0:00:12]}  Nc3 {[%clk 0:00:04]} 76. Nf4 {[%clk 0:00:12]}  Nb5 {[%clk 0:00:04]} 77. Ke3 {[%clk 0:00:11]}  Nc7 {[%clk 0:00:04]} 78. Rd7 {[%clk 0:00:10]}  Nb5 {[%clk 0:00:04]} 79. Re7 {[%clk 0:00:08]}  Nd4 {[%clk 0:00:05]} 80. Ng6+ {[%clk 0:00:08]}  Kf6 {[%clk 0:00:04]} 81. Kxd4 {[%clk 0:00:08]}  Kxg6 {[%clk 0:00:04]} 82. Rxe6+ {[%clk 0:00:08]} 1-0


[Site "https://www.chess.com"]